bitfinex/quotes_BTCUSD_20250831
["timestamp","ask_amount","ask_price","bid_price","bid_amount"]
[1756656193535,7.00104762,108940.0,108930.0,0.00114256]
[1756656193918,7.00102913,108940.0,108930.0,0.00114256]
[1756656195360,0.523621,108920.0,108910.0,0.00310856]
[1756656195576,1.84128508,108920.0,108910.0,0.0035841]
[1756656195816,1.84128508,108920.0,108910.0,0.0057441]
[1756656196138,1.86889208,108920.0,108910.0,0.0057441]
[1756656196578,1.86889208,108920.0,108910.0,0.0077441]
[1756656197056,1.86889208,108920.0,108910.0,0.0107441]
[1756656198238,1.86528026,108920.0,108910.0,0.0107441]
[1756656199480,1.86689026,108920.0,108910.0,0.0107441]
[1756656199855,1.82800341,108920.0,108910.0,0.0107441]
[1756656203468,6.82800341,108920.0,108910.0,0.0107441]
[1756656203700,6.83800341,108920.0,108910.0,0.0107441]
[1756656204312,6.84658937,108920.0,108910.0,0.0107441]
[1756656204714,6.69234937,108920.0,108910.0,0.0107441]
[1756656204917,6.93484569,108920.0,108910.0,0.0107441]
[1756656206707,5.67796807,108920.0,108910.0,0.1607441]
[1756656206912,1.32916076,108920.0,108910.0,0.1607441]
[1756656207562,1.34633953,108920.0,108910.0,0.1607441]
[1756656208309,1.19214459,108920.0,108910.0,0.1607441]
[1756656208525,1.34634459,108920.0,108910.0,0.1607441]
[1756656208906,1.19214459,108920.0,108910.0,0.1607441]
[1756656209106,1.34634459,108920.0,108910.0,0.1607441]
[1756656210689,1.43464091,108920.0,108910.0,0.1607441]
[1756656211336,1.95202952,108920.0,108910.0,0.1607441]
[1756656211569,1.9718403,108920.0,108910.0,0.1607441]
[1756656211795,1.8176403,108920.0,108910.0,0.1607441]
[1756656211972,1.9718403,108920.0,108910.0,0.1607441]
[1756656213238,1.8899967,108920.0,108910.0,0.1607441]
[1756656215442,1.8899967,108920.0,108910.0,0.1577441]
[1756656215968,1.8899967,108920.0,108910.0,0.1587441]
[1756656216301,1.8899967,108920.0,108910.0,0.1577441]
[1756656216715,1.8899967,108920.0,108910.0,0.1587441]
[1756656216916,1.8899967,108920.0,108910.0,0.1567441]
[1756656217327,1.8899967,108920.0,108910.0,0.1587441]
[1756656217539,1.97829302,108920.0,108910.0,0.1587441]
[1756656218869,1.97837008,108920.0,108910.0,0.1587441]
[1756656219421,1.97837285,108920.0,108910.0,0.1587441]
[1756656222004,2.1081369,108920.0,108910.0,0.1587441]
[1756656222400,2.10816249,108920.0,108910.0,0.1587441]
[1756656223961,2.01986617,108920.0,108910.0,0.1587441]
[1756656224138,1.63275908,108920.0,108910.0,0.1587441]
[1756656224952,2.01986617,108920.0,108910.0,0.1587441]
[1756656225346,1.63275908,108920.0,108910.0,0.15347554]
[1756656225692,8.23378318,108920.0,108910.0,0.15347554]
[1756656225905,0.52365472,108900.0,108890.0,0.0004]
[1756656226112,1.98429471,108900.0,108890.0,0.00044747]
[1756656226326,1.98590471,108900.0,108890.0,0.00044747]
[1756656226572,2.01351771,108900.0,108890.0,0.00044747]
[1756656226992,1.85931771,108900.0,108890.0,0.00044747]
[1756656227196,1.62480062,108900.0,108890.0,0.00566747]
[1756656227623,1.62480062,108900.0,108890.0,0.00766747]
[1756656227979,1.36037294,108900.0,108890.0,0.00766747]
[1756656228184,1.34056216,108900.0,108890.0,0.00866747]
[1756656228389,0.57712876,108900.0,108890.0,0.00866747]
[1756656228587,1.22172111,108900.0,108890.0,0.00866747]
[1756656228793,1.06752111,108900.0,108890.0,0.01096336]
[1756656229084,1.22120853,108900.0,108890.0,0.01096336]
[1756656229283,1.06700853,108900.0,108890.0,0.01096336]
[1756656229482,1.22120853,108900.0,108890.0,0.01096336]
[1756656230055,1.06700853,108900.0,108890.0,0.01096336]
[1756656230245,1.22120853,108900.0,108890.0,0.01096336]
[1756656230903,1.06700853,108900.0,108890.0,0.01096336]
[1756656231225,0.70495514,108900.0,108890.0,0.21413979]
[1756656231426,1.22120853,108900.0,108890.0,0.3618439]
[1756656231640,0.52625339,108920.0,108900.0,0.18364088]
[1756656231853,0.89167906,108920.0,108910.0,0.00513]
[1756656232910,0.73747906,108920.0,108910.0,0.00513]
[1756656233120,0.89167906,108920.0,108910.0,0.00513]
[1756656234317,0.37542567,108920.0,108910.0,0.00513]
[1756656234518,0.89167906,108920.0,108910.0,0.00613]
[1756656235609,1.40954245,108920.0,108910.0,0.00401]
[1756656235811,1.93081878,108920.0,108910.0,0.001]
[1756656236014,1.95663191,108920.0,108910.0,0.001]
[1756656236217,1.95663197,108920.0,108910.0,0.001]
[1756656236425,1.94043313,108920.0,108910.0,0.001]
[1756656236640,7.07494723,108920.0,108910.0,0.001]
[1756656236849,7.08140109,108920.0,108910.0,0.001]
[1756656237273,7.08039109,108920.0,108910.0,0.001]
[1756656237472,0.18363786,108910.0,108900.0,0.00301]
[1756656237701,5.94703126,108910.0,108900.0,0.00301]
[1756656237882,0.94703126,108910.0,108900.0,0.00513]
[1756656238096,0.94864126,108910.0,108900.0,0.00513]
[1756656238295,0.97625126,108910.0,108900.0,0.00513]
[1756656238716,0.69963339,108910.0,108900.0,0.00513]
[1756656238916,0.88166125,108910.0,108900.0,0.00613]
[1756656239098,0.88327125,108910.0,108900.0,0.00613]
[1756656239707,1.22327125,108910.0,108900.0,0.00613]
[1756656239906,1.22166125,108910.0,108900.0,0.00613]
[1756656241350,1.22327125,108910.0,108900.0,0.00613]
[1756656241789,1.22327125,108910.0,108900.0,0.00401]
[1756656242447,1.22327125,108910.0,108900.0,0.001]
[1756656242850,1.31156757,108910.0,108900.0,0.001]
[1756656243084,1.22166125,108910.0,108900.0,0.00613]
[1756656243614,1.06750125,108910.0,108900.0,0.00613]
[1756656243819,1.22166125,108910.0,108900.0,0.00613]
[1756656246452,1.22327125,108910.0,108900.0,0.00401]
[1756656246654,1.22327125,108910.0,108900.0,0.001]
[1756656248876,1.31156757,108910.0,108900.0,0.001]
[1756656249951,1.40454758,108910.0,108900.0,0.001]
[1756656250510,1.43136988,108910.0,108900.0,0.001]
[1756656251313,1.43136988,108910.0,108890.0,0.00044747]
[1756656251314,0.52365472,108900.0,108890.0,0.00044747]
[1756656251515,1.19406811,108900.0,108890.0,0.00044747]
[1756656251717,1.19567811,108900.0,108890.0,0.00044747]
[1756656251964,1.19567811,108900.0,108890.0,0.00345747]
[1756656252341,1.22329011,108900.0,108890.0,0.00557747]
[1756656253370,1.22168011,108900.0,108890.0,0.00557747]
[1756656253740,1.22168011,108900.0,108890.0,0.00657747]
[1756656257541,1.22329011,108900.0,108890.0,0.00657747]
[1756656257943,1.22329011,108900.0,108890.0,0.00445747]
[1756656261299,1.22329011,108900.0,108890.0,0.00397562]
[1756656261632,0.70703672,108900.0,108890.0,0.00397562]
[1756656261820,1.22329011,108900.0,108890.0,0.001]
[1756656263380,1.31158643,108900.0,108890.0,0.001]
[1756656263580,1.33741497,108900.0,108890.0,0.001]
[1756656265310,1.35726425,108900.0,108890.0,0.001]
[1756656269098,0.84101086,108900.0,108890.0,0.001]
[1756656269315,1.24750865,108900.0,108890.0,0.00614]
[1756656271291,1.24752323,108900.0,108890.0,0.00614]
[1756656274833,1.0933648,108900.0,108890.0,0.00614]
[1756656275216,1.2475248,108900.0,108890.0,0.00614]
[1756656275672,0.57711141,108900.0,108890.0,0.00614]
[1756656275883,1.2475248,108900.0,108890.0,0.00614]
[1756656276615,1.33582112,108900.0,108890.0,0.00614]
[1756656276824,1.2475248,108900.0,108890.0,0.00614]
[1756656278380,1.0933648,108900.0,108890.0,0.00614]
[1756656278580,1.2475248,108900.0,108890.0,0.00614]
[1756656280065,1.2491848,108900.0,108890.0,0.00614]
[1756656280262,1.2491848,108900.0,108890.0,0.001]
[1756656281949,1.24919481,108900.0,108890.0,0.001]
[1756656282494,1.24919481,108900.0,108890.0,0.00418]
[1756656282901,1.24919481,108900.0,108890.0,0.001]
[1756656283095,1.09337481,108900.0,108890.0,0.00614]
[1756656283321,1.24919481,108900.0,108890.0,0.00614]
[1756656283517,1.09503481,108900.0,108890.0,0.001]
[1756656283737,1.24919481,108900.0,108890.0,0.001]
[1756656284155,1.24919481,108900.0,108890.0,0.00418]
[1756656284355,1.24915481,108900.0,108890.0,0.00418]
[1756656284574,0.73290142,108900.0,108890.0,0.00418]
[1756656284778,1.24749481,108900.0,108890.0,0.00614]
[1756656285386,1.24915557,108900.0,108890.0,0.00614]
[1756656286283,0.73213183,108900.0,108890.0,0.00614]
[1756656286486,1.24672522,108900.0,108890.0,0.00614]
[1756656287308,1.09260522,108900.0,108890.0,0.00614]
[1756656287495,1.24672522,108900.0,108890.0,0.00614]
[1756656288136,1.50484039,108900.0,108890.0,0.00614]
[1756656288863,1.48760316,108900.0,108890.0,0.00614]
[1756656289065,1.50484044,108900.0,108890.0,0.00614]
[1756656289623,1.50650044,108900.0,108890.0,0.00614]
[1756656291376,1.50650044,108900.0,108890.0,0.00418]
[1756656292577,1.50650113,108900.0,108890.0,0.00418]
[1756656293691,1.50484113,108900.0,108890.0,0.00632]
[1756656297330,1.48760422,108900.0,108890.0,0.00632]
[1756656298501,1.48760447,108900.0,108890.0,0.00632]
[1756656298671,1.47898493,108900.0,108890.0,0.00632]
[1756656298888,0.70461637,108900.0,108890.0,0.00632]
[1756656299087,0.367612,108900.0,108890.0,0.00632]
[1756656299288,0.38718428,108900.0,108890.0,0.19228748]
[1756656299652,0.38718428,108900.0,108890.0,0.18999159]
[1756656300643,0.70536686,108910.0,108890.0,0.18999159]
[1756656300881,0.38718428,108900.0,108890.0,0.18999159]
[1756656301084,0.41479328,108900.0,108890.0,0.18681159]
[1756656301526,0.41479328,108900.0,108890.0,0.18581159]
[1756656301737,0.41479328,108900.0,108890.0,0.18898159]
[1756656302715,0.41479328,108900.0,108890.0,0.18998159]
[1756656303235,0.41479328,108900.0,108890.0,0.18898159]
[1756656303443,0.027609,108900.0,108890.0,0.33898159]
[1756656303649,0.41479328,108900.0,108890.0,0.19198159]
[1756656304067,0.41479328,108900.0,108890.0,0.34198159]
[1756656304273,0.41479328,108900.0,108890.0,0.19198159]
[1756656304475,0.54130428,108910.0,108900.0,0.18365472]
[1756656304716,0.181727,108910.0,108900.0,0.18896472]
[1756656304924,0.41479128,108910.0,108900.0,0.18896472]
[1756656307748,0.75254914,108910.0,108900.0,0.18996472]
[1756656309543,0.59842914,108910.0,108900.0,0.00631]
[1756656309806,0.75254914,108910.0,108900.0,0.1922604]
[1756656310006,0.75254914,108910.0,108900.0,0.18996472]
[1756656310463,0.36536486,108910.0,108900.0,0.18996472]
[1756656310947,0.56891128,108910.0,108900.0,0.18996472]
[1756656311758,0.41479128,108910.0,108900.0,0.18996472]
[1756656311919,0.56891128,108910.0,108900.0,0.18996472]
[1756656312129,0.75254914,108910.0,108900.0,0.33996472]
[1756656312323,0.75250914,108910.0,108900.0,0.33996472]
[1756656312729,0.75250914,108910.0,108900.0,0.18996472]
[1756656312925,0.75250914,108910.0,108900.0,0.33996472]
[1756656313136,0.75250914,108910.0,108900.0,0.18996472]
[1756656314160,0.59842914,108910.0,108900.0,0.18996472]
[1756656314352,0.75250914,108910.0,108900.0,0.18996472]
[1756656315854,0.027607,108910.0,108900.0,0.18996472]
[1756656316065,0.56887128,108910.0,108900.0,0.18996472]
[1756656316266,0.41479128,108910.0,108900.0,0.18996472]
[1756656316879,0.41479128,108910.0,108900.0,0.34404472]
[1756656317087,0.41479128,108910.0,108900.0,0.18996472]
[1756656317283,0.41479128,108910.0,108900.0,0.34404472]
[1756656317485,0.59842914,108910.0,108900.0,0.34404472]
[1756656317709,0.21124486,108910.0,108900.0,0.34404472]
[1756656317939,0.41479128,108910.0,108900.0,0.34404472]
[1756656318513,0.59842914,108910.0,108900.0,0.34404472]
[1756656321086,0.75250914,108910.0,108900.0,0.34404472]
[1756656321486,0.75250914,108910.0,108900.0,0.18996472]
[1756656325999,0.75416914,108910.0,108900.0,0.18996472]
[1756656328213,0.75250914,108910.0,108900.0,0.18996472]
[1756656329876,0.75250914,108910.0,108900.0,0.34404472]
[1756656332113,0.36532486,108910.0,108900.0,0.34404472]
[1756656332395,0.75250914,108910.0,108900.0,0.34404472]
[1756656332601,0.75416914,108910.0,108900.0,0.34404472]
[1756656335078,0.36698486,108910.0,108900.0,0.34404472]
[1756656335296,0.75416914,108910.0,108900.0,0.34404472]
[1756656336903,0.71270154,108910.0,108900.0,0.39681635]
[1756656337330,1.10154582,108910.0,108900.0,0.001]
[1756656337534,0.71436154,108910.0,108900.0,0.001]
[1756656337912,0.74196754,108910.0,108900.0,0.001]
[1756656338339,0.35478326,108910.0,108900.0,0.001]
[1756656338550,0.74196754,108910.0,108900.0,0.001]
[1756656338980,0.35478326,108910.0,108900.0,0.00624]
[1756656339200,0.75298814,108910.0,108900.0,0.1921904]
[1756656339435,0.75298814,108910.0,108900.0,0.24293692]
[1756656339610,0.59842814,108910.0,108900.0,0.24293692]
[1756656340017,0.75298814,108910.0,108900.0,0.24293692]
[1756656340254,0.59842814,108910.0,108900.0,0.24293692]
[1756656340472,0.18363786,108910.0,108900.0,0.24293692]
[1756656340677,0.57082214,108910.0,108900.0,0.24293692]
[1756656340884,0.18363786,108910.0,108900.0,0.24293692]
[1756656341116,0.57082214,108910.0,108900.0,0.24293692]
[1756656342265,0.18363786,108910.0,108900.0,0.24293692]
[1756656342499,0.57082214,108910.0,108900.0,0.24293692]
[1756656343841,0.38718428,108910.0,108900.0,0.24293692]
[1756656344306,0.38492772,108920.0,108900.0,0.24293692]
[1756656344533,0.38718428,108910.0,108900.0,0.23976692]
[1756656344720,0.57082214,108910.0,108900.0,0.23976692]
[1756656344933,0.772072,108920.0,108900.0,0.23976692]
[1756656345183,1.13793101,108920.0,108910.0,0.00317]
[1756656345415,1.12235167,108920.0,108910.0,0.00317]
[1756656345634,1.50953613,108920.0,108910.0,0.00317]
[1756656346540,1.50953613,108920.0,108910.0,0.00546547]
[1756656346697,1.35705613,108920.0,108910.0,0.00546547]
[1756656346916,1.51153613,108920.0,108910.0,0.00753547]
[1756656347120,1.50953613,108920.0,108910.0,0.00753547]
[1756656347319,1.51153613,108920.0,108910.0,0.00753547]
[1756656347499,1.50291628,108920.0,108910.0,0.00753547]
[1756656348155,1.50291628,108920.0,108910.0,0.00546547]
[1756656355183,1.50291628,108920.0,108910.0,0.00229547]
[1756656356990,1.30929461,108920.0,108910.0,0.00229547]
[1756656357184,1.30909461,108920.0,108910.0,0.00229547]
[1756656357444,1.49274526,108920.0,108910.0,0.00229547]
[1756656358750,0.7183767,108920.0,108910.0,0.00538547]
[1756656358957,1.49274526,108920.0,108910.0,0.00538547]
[1756656360165,0.7183767,108920.0,108910.0,0.00538547]
[1756656360490,1.49274526,108920.0,108910.0,0.00538547]
[1756656364752,1.49262526,108920.0,108910.0,0.00229547]
[1756656365192,1.49262526,108920.0,108910.0,0.00538547]
[1756656366064,0.99846526,108920.0,108910.0,0.19102333]
[1756656366281,1.15254526,108920.0,108910.0,0.18872786]
[1756656370368,0.029605,108920.0,108910.0,0.18872786]
[1756656370589,0.002,108920.0,108910.0,0.83878476]
[1756656370816,0.002,108920.0,108910.0,0.85972358]
[1756656371038,0.002,108920.0,108910.0,0.88732358]
[1756656371910,0.94755479,108940.0,108930.0,0.18360414]
[1756656372129,1.111907,108940.0,108930.0,0.18360414]
[1756656372347,1.10329479,108940.0,108930.0,0.18669414]
[1756656372564,0.03621247,108940.0,108930.0,0.18869414]
[1756656372792,0.02926,108940.0,108930.0,0.18869414]
[1756656373008,0.41644428,108940.0,108930.0,0.18869414]
[1756656373213,0.41691947,108940.0,108930.0,0.18869414]
[1756656373422,0.41891947,108940.0,108930.0,0.18869414]
[1756656373666,0.60250676,108940.0,108930.0,0.18869414]
[1756656374343,0.03007519,108940.0,108930.0,0.18869414]
[1756656374564,0.60084676,108940.0,108930.0,0.18869414]
[1756656374783,0.60050676,108940.0,108930.0,0.18869414]
[1756656374999,0.60050676,108940.0,108930.0,0.18969414]
[1756656375631,0.98769104,108940.0,108930.0,0.18969414]
[1756656375784,1.14209104,108940.0,108930.0,0.18769414]
[1756656378913,0.36772248,108940.0,108930.0,0.18460414]
[1756656379096,1.14209104,108940.0,108930.0,0.18769414]
[1756656379699,0.36772248,108940.0,108930.0,0.18969414]
[1756656379898,1.14209104,108940.0,108930.0,0.18969414]
[1756656380566,1.14209104,108940.0,108930.0,0.18769414]
[1756656381346,1.14209104,108940.0,108930.0,0.18980414]
[1756656382642,1.14209104,108940.0,108930.0,0.18769414]
[1756656382848,1.14209104,108940.0,108930.0,0.00409]
[1756656382999,1.14209104,108940.0,108930.0,0.00638505]
[1756656383217,1.14209104,108940.0,108930.0,0.001]
[1756656384861,1.14209104,108940.0,108930.0,0.00329505]
[1756656385511,1.14209104,108940.0,108930.0,0.18982919]
[1756656385771,1.14209104,108940.0,108930.0,0.18753414]
[1756656385987,1.14205104,108940.0,108930.0,0.18964414]
[1756656387345,0.36768248,108940.0,108930.0,0.18964414]
[1756656387557,1.14205104,108940.0,108930.0,0.18964414]
[1756656387964,0.98769104,108940.0,108930.0,0.18964414]
[1756656388285,0.56961947,108940.0,108930.0,0.18964414]
[1756656389478,0.41525947,108940.0,108930.0,0.18964414]
[1756656389683,0.02807519,108940.0,108930.0,0.18964414]
[1756656389885,0.38765947,108940.0,108930.0,0.18964414]
[1756656390432,0.00047519,108940.0,108930.0,0.18964414]
[1756656390863,0.38765947,108940.0,108930.0,0.18964414]
[1756656391662,0.00047519,108940.0,108930.0,0.18964414]
[1756656391863,0.38765947,108940.0,108930.0,0.18964414]
[1756656392060,0.38765947,108940.0,108930.0,0.21724114]
[1756656400144,0.38820223,108940.0,108930.0,0.21724114]
[1756656400399,0.00101795,108940.0,108930.0,0.21724114]
[1756656400558,0.77538651,108940.0,108930.0,0.21724114]
[1756656401005,0.38820223,108940.0,108930.0,0.31022115]
[1756656401372,0.38765947,108940.0,108930.0,0.30967839]
[1756656404173,0.00047519,108940.0,108930.0,0.30967839]
[1756656404605,0.38765947,108940.0,108930.0,0.30967839]
[1756656407858,0.00047519,108940.0,108930.0,0.33061721]
[1756656408738,0.38765947,108940.0,108930.0,0.33015997]
[1756656409156,0.38765947,108940.0,108930.0,0.33515997]
[1756656410005,0.00047519,108940.0,108930.0,0.72234425]
[1756656411038,0.00047519,108940.0,108930.0,0.33515997]
[1756656411218,0.00047519,108940.0,108930.0,0.72234425]
[1756656414675,0.00047519,108940.0,108930.0,0.87234425]
[1756656414883,0.00047519,108940.0,108930.0,0.72234425]
[1756656416013,0.00047519,108940.0,108930.0,0.87682425]
[1756656416180,0.00047519,108940.0,108930.0,0.33515997]
[1756656416376,0.00047519,108940.0,108930.0,0.87678425]
[1756656416747,0.00047519,108940.0,108930.0,1.21678425]
[1756656416962,0.00047519,108940.0,108930.0,1.26678425]
[1756656417257,0.00047519,108940.0,108930.0,1.26478425]
[1756656417662,0.00047519,108940.0,108930.0,1.26878425]
[1756656418236,0.00047519,108940.0,108930.0,1.26578425]
[1756656418666,0.00047519,108940.0,108930.0,1.26878425]
[1756656419437,0.00047519,108940.0,108930.0,0.72715997]
[1756656419651,0.00047519,108940.0,108930.0,1.26874425]
[1756656419864,0.00047519,108940.0,108930.0,1.66874425]
[1756656421562,0.00047519,108940.0,108930.0,1.54871997]
[1756656421929,0.00047519,108940.0,108930.0,1.93590425]
[1756656422781,0.00047519,108940.0,108930.0,1.54871997]
[1756656422991,0.00047519,108940.0,108930.0,1.93590425]
[1756656423198,0.00047519,108940.0,108930.0,1.78154425]
[1756656423424,0.00047519,108940.0,108930.0,1.66874425]
[1756656433384,0.00047519,108940.0,108930.0,1.93594425]
[1756656435864,0.00047519,108940.0,108930.0,1.95435425]
[1756656436065,0.00047519,108940.0,108930.0,1.93594425]
[1756656439467,0.00047519,108940.0,108930.0,1.78154425]
[1756656439667,0.00047519,108940.0,108930.0,1.93562425]
[1756656440236,0.0721143,108970.0,108960.0,0.18355359]
[1756656440459,0.0721143,108970.0,108960.0,0.4306136]
[1756656440460,0.45929858,108970.0,108960.0,0.4306136]
[1756656440986,0.45929858,108970.0,108960.0,0.4582016]
[1756656441756,0.38718428,108970.0,108960.0,0.4582016]
[1756656442125,0.38718428,108970.0,108960.0,0.4306136]
[1756656444459,0.38718428,108970.0,108960.0,0.47270692]
[1756656447604,0.19769927,108980.0,108970.0,0.18353675]
[1756656447821,0.98068431,108980.0,108970.0,0.33757675]
[1756656448040,0.00861648,108980.0,108970.0,0.48757675]
[1756656448279,1.073974,109000.0,108980.0,0.18351059]
[1756656448496,0.38718428,108990.0,108980.0,0.33755059]
[1756656448712,0.3957974,108990.0,108980.0,0.33755059]
[1756656448922,0.39588463,108990.0,108980.0,0.4295306]
[1756656449137,0.00870035,108990.0,108980.0,0.4316606]
[1756656449355,0.38727151,108990.0,108980.0,0.4338006]
[1756656449534,0.40024616,108990.0,108980.0,0.4338006]
[1756656449775,0.40024616,108990.0,108980.0,0.45473942]
[1756656449990,0.38727151,108990.0,108980.0,0.45473942]
[1756656450426,0.38727151,108990.0,108980.0,0.48232142]
[1756656450678,8.723e-05,108990.0,108980.0,0.48232142]
[1756656451342,8.723e-05,108990.0,108980.0,0.8705057]
[1756656451567,8.723e-05,108990.0,108980.0,0.48332142]
[1756656451788,8.723e-05,108990.0,108980.0,0.48232142]
[1756656452015,8.723e-05,108990.0,108980.0,0.8695057]
[1756656452266,8.723e-05,108990.0,108980.0,0.8735057]
[1756656452660,8.723e-05,108990.0,108980.0,0.8755057]
[1756656453083,8.723e-05,108990.0,108980.0,1.0255057]
[1756656453287,8.723e-05,108990.0,108980.0,0.8755057]
[1756656454124,8.723e-05,108990.0,108980.0,0.8735057]
[1756656454330,8.723e-05,108990.0,108980.0,0.8765057]
[1756656454737,8.723e-05,108990.0,108980.0,1.60368998]
[1756656455362,8.723e-05,108990.0,108980.0,2.05368998]
[1756656455572,8.723e-05,108990.0,108980.0,2.30368998]
[1756656456008,1e-08,108990.0,108980.0,2.30368998]
[1756656456604,1e-08,108990.0,108980.0,2.29968998]
[1756656456810,1e-08,108990.0,108980.0,2.40151998]
[1756656457194,1e-08,108990.0,108980.0,2.24447998]
[1756656457400,1e-08,108990.0,108980.0,2.39851998]
[1756656457623,1e-08,108990.0,108980.0,2.40151998]
[1756656457995,1e-08,108990.0,108980.0,2.1420157]
[1756656458997,1e-08,108990.0,108980.0,1.9879757]
[1756656459201,1e-08,108990.0,108980.0,1.9829757]
[1756656459406,1e-08,108990.0,108980.0,2.1369757]
[1756656459596,1e-08,108990.0,108980.0,2.1399757]
[1756656460152,1e-08,108990.0,108980.0,2.1369757]
[1756656460567,1e-08,108990.0,108980.0,2.1409757]
[1756656463065,1e-08,108990.0,108980.0,2.4081757]
[1756656463708,1e-08,108990.0,108980.0,2.4082157]
[1756656463851,1e-08,108990.0,108980.0,2.2541757]
[1756656464052,1e-08,108990.0,108980.0,2.4082957]
[1756656465946,1e-08,108990.0,108980.0,2.4082557]
[1756656466869,1e-08,108990.0,108980.0,2.3114257]
[1756656467809,1e-08,108990.0,108980.0,2.1573457]
[1756656468019,1e-08,108990.0,108980.0,2.3113857]
[1756656471448,0.0002,109010.0,109000.0,0.25442505]
[1756656471658,0.0002,109010.0,109000.0,1.08722934]
[1756656471659,0.0002475,109010.0,109000.0,1.08722934]
[1756656471878,0.0002475,109010.0,109000.0,1.09219934]
[1756656472128,0.0002475,109010.0,109000.0,1.11976834]
[1756656472359,0.0002475,109010.0,109000.0,1.76976834]
[1756656472582,0.0002475,109010.0,109000.0,1.76972834]
[1756656472718,0.0002475,109010.0,109000.0,1.77272834]
[1756656473125,0.0002475,109010.0,109000.0,1.77672834]
[1756656477906,0.0002475,109010.0,109000.0,2.04388834]
[1756656479924,0.0002475,109010.0,109000.0,2.03988834]
[1756656480153,0.0002475,109010.0,109000.0,1.52494406]
[1756656480358,0.0002475,109010.0,109000.0,2.2970782]
[1756656480556,0.0002475,109010.0,109000.0,2.3010782]
[1756656481072,0.0002475,109010.0,109000.0,2.2980782]
[1756656481290,0.0002475,109010.0,109000.0,2.1437582]
[1756656481478,0.0002475,109010.0,109000.0,2.2941582]
[1756656481677,0.0002475,109010.0,109000.0,2.2971582]
[1756656481879,0.0002475,109010.0,109000.0,1.91113113]
[1756656482082,0.0002475,109010.0,109000.0,2.03690128]
[1756656482483,0.0002475,109010.0,109000.0,2.04090128]
[1756656482890,0.0002475,109010.0,109000.0,1.53110406]
[1756656483074,0.0002475,109010.0,109000.0,2.04590128]
[1756656484591,0.0002475,109010.0,109000.0,1.10747406]
[1756656484790,0.51504472,109010.0,109000.0,0.38359524]
[1756656484998,0.52363675,109010.0,109000.0,0.38359524]
[1756656485192,0.52363675,109010.0,109000.0,0.40453406]
[1756656485485,0.52363675,109010.0,109000.0,0.53803524]
[1756656485680,0.52363675,109010.0,109000.0,0.40453406]
[1756656485881,0.70710615,109010.0,109000.0,0.37959524]
[1756656486102,0.54082755,109010.0,109000.0,0.55777462]
[1756656486342,0.02603033,109010.0,109000.0,0.56277462]
[1756656486551,0.00883953,109010.0,109000.0,0.56774462]
[1756656486783,0.00883953,109010.0,109000.0,0.58868344]
[1756656486998,0.00883953,109010.0,109000.0,0.62695952]
[1756656487164,0.00883953,109010.0,109000.0,0.62895952]
[1756656487381,0.0002475,109010.0,109000.0,0.96695952]
[1756656487585,0.0002475,109010.0,109000.0,1.11695952]
[1756656487796,0.0002475,109010.0,109000.0,0.96495952]
[1756656488007,0.0002475,109010.0,109000.0,1.06178952]
[1756656488219,0.0002475,109010.0,109000.0,0.96495952]
[1756656488416,0.51504472,109010.0,109000.0,0.80554952]
[1756656488640,0.0002475,109010.0,109000.0,0.96018952]
[1756656488868,0.51504472,109010.0,109000.0,0.96218952]
[1756656489267,0.51504472,109010.0,109000.0,0.96418952]
[1756656489710,0.51504472,109010.0,109000.0,0.96218952]
[1756656489926,0.0002475,109010.0,109000.0,0.96715952]
[1756656490392,0.0002475,109010.0,109000.0,0.97015952]
[1756656493555,0.51504472,109010.0,109000.0,0.81054952]
[1756656493774,0.51504472,109010.0,109000.0,1.36538952]
[1756656494224,0.0002475,109010.0,109000.0,1.36538952]
[1756656494441,0.0002475,109010.0,109000.0,1.36832952]
[1756656495074,0.0002475,109010.0,109000.0,1.39793052]
[1756656495972,0.51504472,109010.0,109000.0,1.39288052]
[1756656497298,0.51504472,109010.0,109000.0,1.39582052]
[1756656499761,0.0002475,109010.0,109000.0,1.39785052]
[1756656500175,0.51504472,109010.0,109000.0,1.39786052]
[1756656500606,0.0002475,109010.0,109000.0,1.39786052]
[1756656501577,0.0002475,109010.0,109000.0,0.99786052]
[1756656503050,0.0002475,109010.0,109000.0,1.39786052]
[1756656504511,0.01071285,109030.0,109020.0,0.02093882]
[1756656504717,0.52551007,109030.0,109020.0,0.46487783]
[1756656505695,0.70894582,109030.0,109020.0,0.11391883]
[1756656505898,0.70894582,109030.0,109020.0,0.09298001]
[1756656506272,0.70894582,109030.0,109020.0,0.15604]
[1756656506717,0.73651982,109030.0,109020.0,0.15604]
[1756656506919,0.73651982,109030.0,109020.0,0.15504]
[1756656508279,0.18345257,109020.0,109010.0,0.20440729]
[1756656508500,0.18345257,109020.0,109010.0,0.4523873]
[1756656508501,0.69824979,109020.0,109010.0,0.4523873]
[1756656508925,0.18345257,109020.0,109010.0,0.4523873]
[1756656509186,0.69824979,109020.0,109010.0,0.4523873]
[1756656509539,0.2217226,109030.0,109010.0,0.4533873]
[1756656509933,0.51479722,109020.0,109010.0,0.4533873]
[1756656510514,0.51479722,109020.0,109010.0,0.4523873]
[1756656513134,0.51479722,109020.0,109010.0,0.4533873]
[1756656514593,0.69824979,109020.0,109010.0,0.4533873]
[1756656514799,0.18345257,109020.0,109010.0,0.4533873]
[1756656515182,0.69824979,109020.0,109010.0,0.4533873]
[1756656516916,0.69824979,109020.0,109010.0,0.15584]
[1756656517332,0.72582679,109020.0,109010.0,0.15584]
[1756656518058,0.72562679,109020.0,109010.0,0.15584]
[1756656518266,0.96892311,109020.0,109010.0,0.001]
[1756656518478,1.30892311,109020.0,109010.0,0.15604]
[1756656518880,1.22062679,109020.0,109010.0,0.15604]
[1756656519070,1.22062679,109020.0,109010.0,0.0008]
[1756656522525,0.70582957,109020.0,109010.0,0.0008]
[1756656522736,1.22062679,109020.0,109010.0,0.0008]
[1756656525354,1.22062679,109020.0,109000.0,0.1743701]
[1756656525355,0.1834694,109010.0,109000.0,0.1743701]
[1756656525601,0.69806662,109010.0,109000.0,0.27031011]
[1756656525978,0.69786662,109010.0,109000.0,0.27031011]
[1756656526402,0.69786662,109010.0,109000.0,0.27011011]
[1756656526610,0.69786662,109010.0,109000.0,0.27191011]
[1756656526970,0.69766662,109010.0,109000.0,0.27191011]
[1756656527175,0.69746662,109010.0,109000.0,0.27191011]
[1756656527569,0.69746662,109010.0,109000.0,0.27171011]
[1756656527778,0.69746662,109010.0,109000.0,0.27151011]
[1756656527973,0.69726662,109010.0,109000.0,0.27151011]
[1756656528399,0.69726662,109010.0,109000.0,0.27131011]
[1756656528653,0.69726662,109010.0,109000.0,0.27333011]
[1756656528800,0.69726662,109010.0,109000.0,0.27133011]
[1756656529013,0.69726662,109010.0,109000.0,0.27233011]
[1756656530528,0.69726662,109010.0,109000.0,0.27031011]
[1756656531551,0.69706662,109010.0,109000.0,0.27031011]
[1756656531951,0.69706662,109010.0,109000.0,0.27011011]
[1756656533707,0.69706662,109010.0,109000.0,0.27263883]
[1756656533975,0.69706662,109010.0,109000.0,0.001]